fUSD/lending_fUSD_20250503
["ID","MTS","AMOUNT","RATE_DAILY","PERIOD"]
[359734374,1746287439042,-450.0,0.00019617,2]
[359734375,1746287439052,-73977.83103957,0.00019617,2]
[359734377,1746287439394,-977.34109767,0.00019617,2]
[359734379,1746287439410,-900.73521083,0.00019617,2]
[359734380,1746287439426,-17910.39265193,0.00019617,2]
[359734381,1746287439436,-289.55208868,0.00019617,2]
[359734382,1746287439445,-450.0,0.00019617,2]
[359734383,1746287439455,-1419.39366728,0.00019617,2]
[359734384,1746287439634,-2655.02633272,0.00019617,2]
[359734385,1746287439644,-450.0,0.00019617,2]
[359734386,1746287439653,-450.0,0.00019617,2]
[359734387,1746287439664,-478.65,0.00019617,2]
[359734388,1746287439674,-508.91,0.00019617,2]
[359734389,1746287439683,-450.0,0.00019617,2]
[359734390,1746287439693,-450.0,0.00019617,2]
[359734391,1746287439703,-18840.45,0.00019617,2]
[359734392,1746287439712,-450.0,0.00019617,2]
[359734393,1746287439722,-450.0,0.00019617,2]
[359734394,1746287439732,-1314.74,0.00019617,2]
[359734395,1746287439742,-450.0,0.00019617,2]
[359734396,1746287439751,-998.42,0.00019617,2]
[359734397,1746287439761,-12384.15,0.00019617,2]
[359734398,1746287439770,-450.65,0.00019617,2]
[359734399,1746287439780,-2061.11,0.00019617,2]
[359734400,1746287439790,-1330.88,0.00019617,2]
[359734401,1746287439800,-450.0,0.00019617,2]
[359734402,1746287439810,-450.0,0.00019617,2]
[359734403,1746287439821,-450.0,0.00019617,2]
[359734404,1746287439830,-450.0,0.00019617,2]
[359734405,1746287439840,-450.0,0.00019617,2]
[359734406,1746287439850,-450.0,0.00019617,2]
[359734407,1746287439860,-450.0,0.00019617,2]
[359734408,1746287439870,-450.0,0.00019617,2]
[359734409,1746287439880,-816.54,0.00019617,2]
[359734410,1746287439890,-450.0,0.00019617,2]
[359734411,1746287439899,-450.0,0.00019617,2]
[359734412,1746287439910,-772.19,0.00019617,2]
[359734413,1746287439919,-450.0,0.00019617,2]
[359734414,1746287439929,-450.0,0.00019617,2]
[359734415,1746287439940,-450.0,0.00019617,2]
[359734416,1746287439949,-1607.15,0.00019617,2]
[359734417,1746287439960,-458.62,0.00019617,2]
[359734418,1746287439970,-450.0,0.00019617,2]
[359734419,1746287439979,-620.66,0.00019617,2]
[359734420,1746287439989,-450.0,0.00019617,2]
[359734421,1746287439999,-477.85,0.00019617,2]
[359734422,1746287440009,-994.82,0.00019617,2]
[359734423,1746287440019,-450.0,0.00019617,2]
[359734424,1746287440029,-468.15,0.00019617,2]
[359734425,1746287440039,-3487.58,0.00019617,2]
[359734426,1746287440048,-450.0,0.00019617,2]
[359734427,1746287440057,-450.0,0.00019617,2]
[359734428,1746287440067,-1054.0,0.00019617,2]
[359734429,1746287440078,-470.11,0.00019617,2]
[359734430,1746287440088,-450.0,0.00019617,2]
[359734431,1746287440097,-450.0,0.00019617,2]
[359734432,1746287440107,-450.0,0.00019617,2]
[359734433,1746287440117,-450.0,0.00019617,2]
[359734434,1746287440127,-450.0,0.00019617,2]
[359734435,1746287440136,-450.0,0.00019617,2]
[359734436,1746287440145,-1678.86,0.00019617,2]
[359734437,1746287440156,-450.0,0.00019617,2]
[359734438,1746287440165,-450.0,0.00019617,2]
[359734439,1746287440175,-450.0,0.00019617,2]
[359734440,1746287440184,-450.0,0.00019617,2]
[359734441,1746287440194,-602.25,0.00019617,2]
[359734442,1746287440203,-3443.33,0.00019617,2]
[359734443,1746287440212,-652.09,0.00019617,2]
[359734444,1746287440222,-450.0,0.00019617,2]
[359734445,1746287440231,-450.0,0.00019617,2]
[359734446,1746287440240,-2538.07,0.00019617,2]
[359734447,1746287440250,-847.78,0.00019617,2]
[359734448,1746287440259,-594.65,0.00019617,2]
[359734449,1746287440269,-713.82,0.00019617,2]
[359734450,1746287440278,-450.0,0.00019617,2]
[359734451,1746287440288,-534.46,0.00019617,2]
[359734452,1746287440297,-522.59847802,0.00019617,2]
[359734453,1746287440306,-625.84,0.00019617,2]
[359734454,1746287440316,-952.16,0.00019617,2]
[359734455,1746287440325,-769.95,0.00019617,2]
[359734456,1746287440335,-531.66,0.00019617,2]
[359734458,1746287440344,-353.16523101,0.00019617,2]
[359734460,1746287440353,-450.0,0.00019617,2]
[359734462,1746287440363,-450.0,0.00019617,2]
[359734464,1746287440372,-450.0,0.00019617,2]
[359734465,1746287440382,-812.5,0.00019617,2]
[359734466,1746287440392,-450.0,0.00019617,2]
[359734467,1746287440403,-1169.06,0.00019617,2]
[359734468,1746287440413,-450.0,0.00019617,2]
[359734469,1746287440480,-497.68,0.00019617,2]
[359734470,1746287440490,-450.0,0.00019617,2]
[359734471,1746287440500,-450.0,0.00019617,2]
[359734472,1746287440509,-1672.94,0.00019617,2]
[359734473,1746287440519,-450.0,0.00019617,2]
[359734474,1746287440527,-528.36,0.00019617,2]
[359734475,1746287440537,-5288.03,0.00019617,2]
[359734476,1746287440547,-807.23,0.00019617,2]
[359734477,1746287440556,-541.71,0.00019617,2]
[359734478,1746287440566,-450.0,0.00019617,2]
[359734479,1746287440575,-450.0,0.00019617,2]
[359734480,1746287440584,-450.0,0.00019617,2]
[359734481,1746287440593,-450.0,0.00019617,2]
[359734482,1746287440602,-450.0,0.00019617,2]
[359734483,1746287440612,-450.0,0.00019617,2]
[359734484,1746287440621,-450.0,0.00019617,2]
[359734485,1746287440630,-6393.11,0.00019617,2]
[359734486,1746287440640,-1663.2,0.00019617,2]
[359734487,1746287440649,-450.0,0.00019617,2]
[359734488,1746287440658,-450.0,0.00019617,2]
[359734489,1746287440667,-450.0,0.00019617,2]
[359734490,1746287440676,-4158.69,0.00019617,2]
[359734491,1746287440685,-450.0,0.00019617,2]
[359734492,1746287440695,-450.0,0.00019617,2]
[359734493,1746287440705,-1900.02,0.00019617,2]
[359734494,1746287440715,-450.0,0.00019617,2]
[359734495,1746287440724,-450.0,0.00019617,2]
[359734496,1746287440733,-450.0,0.00019617,2]
[359734497,1746287440743,-450.0,0.00019617,2]
[359734498,1746287440752,-687.38,0.00019617,2]
[359734499,1746287440761,-533.06,0.00019617,2]
[359734500,1746287440771,-1011.12,0.00019617,2]
[359734501,1746287440780,-574.38,0.00019617,2]
[359734502,1746287440788,-450.0,0.00019617,2]
[359734503,1746287440798,-450.0,0.00019617,2]
[359734504,1746287440807,-450.0,0.00019617,2]
[359734505,1746287440816,-450.0,0.00019617,2]
[359734506,1746287440825,-500.0,0.00019617,2]
[359734507,1746287440834,-500.0,0.00019617,2]
[359734508,1746287440843,-500.0,0.00019617,2]
[359734509,1746287440852,-536.79126963,0.00019617,2]
[359734510,1746287440862,-311.96478069,0.00019618,2]
[359734511,1746287440871,-450.0,0.00019618,2]
[359734512,1746287440880,-450.0,0.00019618,2]
[359734513,1746287440889,-450.0,0.00019618,2]
[359734514,1746287440899,-525.55,0.00019618,2]
[359734515,1746287440907,-450.0,0.00019618,2]
[359734516,1746287440916,-450.0,0.00019618,2]
[359734517,1746287440925,-450.0,0.00019618,2]
[359734518,1746287440934,-450.0,0.00019618,2]
[359734519,1746287440943,-450.0,0.00019618,2]
[359734520,1746287440952,-541.47,0.00019618,2]
[359734521,1746287440962,-450.0,0.00019618,2]
[359734522,1746287440971,-450.0,0.00019618,2]
[359734523,1746287440981,-713.49,0.00019618,2]
[359734524,1746287440990,-562.62,0.00019618,2]
[359734525,1746287440999,-450.0,0.00019618,2]
[359734526,1746287441008,-450.0,0.00019618,2]
[359734527,1746287441017,-564.89707459,0.00019618,2]
[359734528,1746287441026,-533.95367948,0.00019618,2]
[359734529,1746287441035,-450.0,0.00019618,2]
[359734530,1746287441044,-450.0,0.00019618,2]
[359734531,1746287441053,-450.0,0.00019618,2]
[359734532,1746287441063,-450.0,0.00019618,2]
[359734533,1746287441072,-472.49,0.00019618,2]
[359734534,1746287441085,-450.0,0.00019618,2]
[359734535,1746287441094,-483.42226741,0.00019618,2]
[359734536,1746287441103,-450.0,0.00019618,2]
[359734537,1746287441112,-450.0,0.00019618,2]
[359734538,1746287441121,-450.0,0.00019618,2]
[359734539,1746287441130,-250.69866356,0.00019618,2]
[359734540,1746287441139,-450.0,0.00019618,2]
[359734541,1746287441148,-450.0,0.00019618,2]
[359734542,1746287441157,-450.0,0.00019618,2]
[359734543,1746287441166,-591.47,0.00019618,2]
[359734544,1746287441175,-537.66,0.00019618,2]
[359734545,1746287441184,-450.0,0.00019618,2]
[359734546,1746287441193,-450.0,0.00019618,2]
[359734547,1746287441202,-450.0,0.00019618,2]
[359734548,1746287441211,-450.0,0.00019618,2]
[359734549,1746287441220,-450.0,0.00019618,2]
[359734550,1746287441229,-290.0961764,0.00019618,2]
[359734551,1746287441239,-450.0,0.00019618,2]
[359734552,1746287441247,-450.0,0.00019618,2]
[359734553,1746287441256,-450.0,0.00019618,2]
[359734554,1746287441265,-450.0,0.00019618,2]
[359734555,1746287441274,-450.0,0.00019618,2]
[359734556,1746287441283,-668.18,0.00019618,2]
[359734557,1746287441293,-450.0,0.00019618,2]
[359734558,1746287441303,-644.11,0.00019618,2]
[359734559,1746287441312,-450.0,0.00019618,2]
[359734560,1746287441321,-450.0,0.00019618,2]
[359734561,1746287441330,-450.0,0.00019618,2]
[359734562,1746287441338,-450.0,0.00019618,2]
[359734563,1746287441348,-450.0,0.00019618,2]
[359734564,1746287441357,-450.0,0.00019618,2]
[359734565,1746287441366,-567.63,0.00019618,2]
[359734566,1746287441375,-450.0,0.00019618,2]
[359734567,1746287441384,-452.75,0.00019618,2]
[359734568,1746287441393,-450.0,0.00019618,2]
[359734569,1746287441402,-450.0,0.00019618,2]
[359734570,1746287441411,-467.05250635,0.00019618,2]
[359734571,1746287441420,-450.0,0.00019618,2]
[359734572,1746287441429,-450.0,0.00019618,2]
[359734573,1746287441439,-222.33032389,0.00019618,2]
[359734574,1746287441448,-450.0,0.00019618,2]
[359734575,1746287441457,-1027.5,0.00019618,2]
[359734576,1746287441466,-577.09,0.00019618,2]
[359734577,1746287441476,-450.0,0.00019618,2]
[359734578,1746287441485,-450.0,0.00019618,2]
[359734579,1746287441494,-450.0,0.00019618,2]
[359734580,1746287441503,-450.0,0.00019618,2]
[359734581,1746287441512,-1441.4,0.00019618,2]
[359734582,1746287441522,-450.0,0.00019618,2]
[359734583,1746287441531,-450.0,0.00019618,2]
[359734584,1746287441540,-450.0,0.00019618,2]
[359734585,1746287441550,-450.0,0.00019618,2]
[359734586,1746287441559,-450.0,0.00019618,2]
[359734587,1746287441569,-450.0,0.00019618,2]
[359734588,1746287441578,-450.0,0.00019618,2]
[359734589,1746287441588,-680.11,0.00019618,2]
[359734590,1746287441597,-528.05,0.00019618,2]
[359734591,1746287441606,-450.0,0.00019618,2]
[359734592,1746287441615,-450.0,0.00019618,2]
[359734593,1746287441625,-787.99,0.00019618,2]
[359734594,1746287441634,-450.0,0.00019618,2]
[359734595,1746287441643,-1065.2,0.00019618,2]
[359734596,1746287441653,-450.0,0.00019618,2]
[359734597,1746287441662,-450.0,0.00019618,2]
[359734598,1746287441671,-514.63,0.00019618,2]
[359734599,1746287441681,-505.13,0.00019618,2]
[359734600,1746287441691,-607.38,0.00019618,2]
[359734601,1746287441700,-450.0,0.00019618,2]
[359734602,1746287441710,-535.85,0.00019618,2]
[359734603,1746287441719,-450.0,0.00019618,2]
[359734604,1746287441728,-450.0,0.00019618,2]
[359734605,1746287441737,-450.0,0.00019618,2]
[359734606,1746287441746,-573.66,0.00019618,2]
[359734607,1746287441756,-197.08173909,0.00019618,2]
[359734608,1746287441765,-1015.06,0.00019618,2]
[359734609,1746287441774,-450.0,0.00019618,2]
[359734610,1746287441783,-450.0,0.00019618,2]
[359734611,1746287441792,-450.0,0.00019618,2]
[359734612,1746287441801,-258.20845104,0.00019618,2]
[359734613,1746287441810,-232.03197545,0.00019618,2]
[359734614,1746287441819,-598.57,0.00019618,2]
[359734615,1746287441828,-450.0,0.00019618,2]
[359734616,1746287441837,-450.0,0.00019618,2]
[359734617,1746287441847,-450.0,0.00019618,2]
[359734618,1746287441856,-1578.1,0.00019618,2]
[359734619,1746287441865,-286.45126402,0.00019618,2]
[359734620,1746287441874,-654.23,0.00019618,2]
[359734621,1746287441883,-530.95,0.00019618,2]
[359734622,1746287441892,-604.28,0.00019618,2]
[359734623,1746287441902,-450.0,0.00019618,2]
[359734624,1746287441911,-619.66,0.00019618,2]
[359734625,1746287441921,-450.0,0.00019618,2]
[359734626,1746287441930,-780.06,0.00019618,2]
[359734627,1746287441939,-782.07,0.00019618,2]
[359734628,1746287441948,-450.0,0.00019618,2]
[359734629,1746287441957,-770.99,0.00019618,2]
[359734630,1746287441967,-649.95,0.00019618,2]
[359734631,1746287441976,-220.16788687,0.00019618,2]
[359734632,1746287441985,-450.0,0.00019618,2]
[359734633,1746287441994,-450.0,0.00019618,2]
[359734634,1746287442003,-450.0,0.00019618,2]
[359734635,1746287442012,-450.0,0.00019618,2]
[359734636,1746287442022,-450.0,0.00019618,2]
[359734637,1746287442031,-450.0,0.00019618,2]
[359734638,1746287442040,-450.0,0.00019618,2]
[359734639,1746287442050,-450.0,0.00019618,2]
[359734640,1746287442059,-540.92,0.00019618,2]
[359734641,1746287442068,-527.99,0.00019618,2]
[359734642,1746287442079,-450.0,0.00019618,2]
[359734643,1746287442090,-450.0,0.00019618,2]
[359734644,1746287442100,-2223.11,0.00019618,2]
[359734645,1746287442109,-450.0,0.00019618,2]
[359734646,1746287442119,-1049.13,0.00019618,2]
[359734647,1746287442128,-450.0,0.00019618,2]
[359734648,1746287442138,-450.0,0.00019618,2]
[359734649,1746287442147,-450.0,0.00019618,2]
[359734650,1746287442157,-490.49,0.00019618,2]
[359734651,1746287442166,-450.0,0.00019618,2]
[359734652,1746287442175,-450.0,0.00019618,2]
[359734653,1746287442184,-450.0,0.00019618,2]
[359734654,1746287442193,-1054.27,0.00019618,2]
[359734655,1746287442204,-450.0,0.00019618,2]
[359734656,1746287442213,-831.9,0.00019618,2]
[359734657,1746287442222,-450.0,0.00019618,2]
[359734658,1746287442232,-250.0,0.00019618,2]
[359734659,1746287442241,-450.0,0.00019618,2]
[359734660,1746287442250,-450.0,0.00019618,2]
[359734661,1746287442259,-450.0,0.00019618,2]
[359734663,1746287442268,-1056.34,0.00019618,2]
[359734664,1746287442276,-450.0,0.00019618,2]
[359734665,1746287442285,-1113.6,0.00019618,2]
[359734666,1746287442294,-757.38,0.00019618,2]
[359734667,1746287442303,-450.0,0.00019618,2]
[359734668,1746287442312,-501.83,0.00019618,2]
[359734669,1746287442321,-450.0,0.00019618,2]
[359734670,1746287442330,-450.0,0.00019618,2]
[359734671,1746287442339,-1416.68,0.00019618,2]
[359734672,1746287442348,-450.0,0.00019618,2]
[359734673,1746287442357,-601.05,0.00019618,2]
[359734674,1746287442367,-450.0,0.00019618,2]
[359734675,1746287442376,-481.52,0.00019618,2]
[359734676,1746287442385,-607.05,0.00019618,2]
[359734677,1746287442395,-450.0,0.00019618,2]
[359734678,1746287442405,-450.0,0.00019618,2]
[359734679,1746287442414,-450.0,0.00019618,2]
[359734680,1746287442423,-450.0,0.00019618,2]
[359734681,1746287442432,-450.0,0.00019618,2]
[359734682,1746287442442,-450.0,0.00019618,2]
[359734683,1746287442451,-290.0,0.00019618,2]
[359734684,1746287442461,-450.87,0.00019618,2]
[359734685,1746287442470,-828.81,0.00019618,2]
[359734687,1746287442480,-716.04,0.00019618,2]
[359734688,1746287442488,-465.85790691,0.00019618,2]
[359734689,1746287442497,-450.0,0.00019618,2]
[359734690,1746287442506,-450.0,0.00019618,2]
[359734691,1746287442515,-450.0,0.00019618,2]
[359734692,1746287442524,-500.0,0.00019618,2]
[359734693,1746287442533,-450.0,0.00019618,2]
[359734694,1746287442543,-2246.49,0.00019618,2]
[359734695,1746287442551,-978.56,0.00019618,2]
[359734697,1746287442560,-546.87753967,0.00019618,2]
[359734698,1746287442570,-655.83,0.00019618,2]
[359734700,1746287442579,-2072.82,0.00019618,2]
[359734702,1746287442588,-450.0,0.00019618,2]
[359734704,1746287442596,-592.95,0.00019618,2]
[359734706,1746287442605,-518.85,0.00019618,2]
[359734707,1746287442614,-354.86006779,0.00019645,2]
[359734708,1746287442623,-347.41686632,0.00019645,2]
[359734710,1746287442633,-999.0,0.00019671,2]
[359734712,1746287442641,-614.27831543,0.00019673,2]
[359734713,1746287442650,-500.0,0.00019673,2]
[359734714,1746287442659,-501.02155493,0.00019673,2]
[359734715,1746287442668,-500.0,0.00019673,2]
[359734717,1746287442677,-500.0,0.00019673,2]
[359734718,1746287442686,-300.15904,0.00019673,2]
[359734719,1746287442695,-500.0,0.00019673,2]
[359734720,1746287442704,-500.0,0.00019673,2]
[359734721,1746287442713,-500.0,0.00019673,2]
[359734722,1746287442722,-500.0,0.00019673,2]
[359734723,1746287442731,-500.0,0.00019673,2]
[359734724,1746287442740,-4974.4,0.00019677,2]
[359734725,1746287442749,-354.86006779,0.00019687,2]
[359734726,1746287442759,-347.41686632,0.00019687,2]
[359734727,1746287442768,-500.96550993,0.00019702,2]
[359734728,1746287442777,-4756.62120976,0.00019703,2]
[359734729,1746287442786,-354.86006779,0.0001973,2]
[359734730,1746287442796,-347.41686632,0.0001973,2]
[359734731,1746287442805,-354.86006779,0.00019772,2]
[359734732,1746287442815,-347.41686632,0.00019772,2]
[359734733,1746287442823,-1625.1877864,0.00019799,2]
[359734734,1746287442832,-354.86006779,0.00019815,2]
[359734735,1746287442841,-347.41686632,0.00019815,2]
[359734736,1746287442850,-2000.0,0.0001984,2]
[359734737,1746287442859,-354.86006779,0.00019857,2]
[359734738,1746287442868,-347.41686632,0.00019857,2]
[359734739,1746287442877,-194.95601885,0.00019886,2]
[359734740,1746287442887,-164.75368526,0.00019888,2]
[359734741,1746287442895,-194.95601882,0.0001989,2]
[359734742,1746287442905,-17336.08359146,0.0001989,2]
[359734743,1746287442914,-450.0,0.00019891,2]
[359734744,1746287442923,-450.0,0.00019891,2]
[359734745,1746287442932,-450.0,0.00019891,2]
[359734746,1746287442941,-450.0,0.00019891,2]
[359734747,1746287442954,-583.88884764,0.00019891,2]
[359734748,1746287442962,-164.75368524,0.00019891,2]
[359734749,1746287442972,-451.84390647,0.00019891,2]
[359734750,1746287442982,-450.0,0.00019891,2]
[359734752,1746287442991,-450.0,0.00019891,2]
[359734754,1746287442999,-450.0,0.00019891,2]
[359734756,1746287443009,-450.0,0.00019891,2]
[359734758,1746287443018,-450.0,0.00019891,2]
[359734760,1746287443027,-450.0,0.00019891,2]
[359734762,1746287443036,-450.0,0.00019891,2]
[359734764,1746287443046,-450.0,0.00019891,2]
[359734765,1746287443055,-450.0,0.00019891,2]
[359734767,1746287443064,-450.0,0.00019891,2]
[359734770,1746287443074,-450.0,0.00019891,2]
[359734773,1746287443086,-962.2,0.00019891,2]
[359734776,1746287443095,-450.0,0.00019891,2]
[359734779,1746287443104,-497.67,0.00019891,2]
[359734781,1746287443114,-669.28,0.00019891,2]
[359734783,1746287443123,-450.0,0.00019891,2]
[359734785,1746287443132,-450.0,0.00019891,2]
[359734787,1746287443141,-500.3,0.00019891,2]
[359734789,1746287443150,-450.0,0.00019891,2]
[359734791,1746287443159,-450.0,0.00019891,2]
[359734793,1746287443169,-450.0,0.00019891,2]
[359734795,1746287443178,-450.0,0.00019891,2]
[359734797,1746287443187,-450.0,0.00019891,2]
[359734799,1746287443197,-450.0,0.00019891,2]
[359734802,1746287443206,-460.31,0.00019891,2]
[359734805,1746287443215,-450.0,0.00019891,2]
[359734808,1746287443224,-450.0,0.00019891,2]
[359734811,1746287443233,-450.0,0.00019891,2]
[359734814,1746287443243,-450.0,0.00019891,2]
[359734817,1746287443252,-450.0,0.00019891,2]
[359734820,1746287443261,-450.0,0.00019891,2]
[359734822,1746287443270,-168.70053879,0.00019891,2]
[359734824,1746287443279,-450.0,0.00019891,2]
[359734825,1746287443288,-644.89,0.00019891,2]
[359734827,1746287443297,-450.0,0.00019891,2]
[359734830,1746287443306,-677.78,0.00019891,2]
[359734833,1746287443315,-450.0,0.00019891,2]
[359734836,1746287443324,-450.0,0.00019891,2]
[359734838,1746287443333,-450.0,0.00019891,2]
[359734839,1746287443342,-4032.54,0.00019891,2]
[359734840,1746287443351,-450.0,0.00019891,2]
[359734842,1746287443360,-450.0,0.00019891,2]
[359734844,1746287443370,-450.0,0.00019891,2]
[359734845,1746287443379,-4580.16,0.00019891,2]
[359734846,1746287443388,-450.0,0.00019891,2]
[359734847,1746287443397,-736.5,0.00019891,2]
[359734848,1746287443406,-450.0,0.00019891,2]
[359734849,1746287443416,-89944.42,0.00019891,2]
[359734850,1746287443425,-450.0,0.00019891,2]
[359734851,1746287443435,-450.0,0.00019891,2]
[359734852,1746287443444,-463.77,0.00019891,2]
[359734853,1746287443453,-1621.3,0.00019891,2]
[359734854,1746287443462,-551.02,0.00019891,2]
[359734855,1746287443472,-450.0,0.00019891,2]
[359734856,1746287443481,-93766.3,0.00019891,2]
[359734857,1746287443490,-450.0,0.00019891,2]
[359734858,1746287443499,-4074.42,0.00019891,2]
[359734859,1746287443511,-450.0,0.00019891,2]
[359734860,1746287443522,-450.0,0.00019891,2]
[359734861,1746287443532,-478.65,0.00019891,2]
[359734862,1746287443541,-508.91,0.00019891,2]
[359734863,1746287443551,-450.0,0.00019891,2]
[359734864,1746287443561,-450.0,0.00019891,2]
[359734865,1746287443570,-18840.45,0.00019891,2]
[359734866,1746287443579,-450.0,0.00019891,2]
[359734867,1746287443588,-450.0,0.00019891,2]
[359734868,1746287443598,-1314.74,0.00019891,2]
[359734869,1746287443608,-450.0,0.00019891,2]
[359734870,1746287443618,-998.42,0.00019891,2]
[359734871,1746287443628,-12384.15,0.00019891,2]
[359734872,1746287443637,-450.65,0.00019891,2]
[359734873,1746287443646,-2061.11,0.00019891,2]
[359734874,1746287443656,-1330.88,0.00019891,2]
[359734875,1746287443665,-450.0,0.00019891,2]
[359734876,1746287443674,-450.0,0.00019891,2]
[359734877,1746287443684,-450.0,0.00019891,2]
[359734878,1746287443695,-450.0,0.00019891,2]
[359734879,1746287443706,-450.0,0.00019891,2]
[359734880,1746287443715,-450.0,0.00019891,2]
[359734881,1746287443725,-450.0,0.00019891,2]
[359734882,1746287443736,-450.0,0.00019891,2]
[359734883,1746287443746,-816.54,0.00019891,2]
[359734884,1746287443756,-450.0,0.00019891,2]
[359734885,1746287443766,-450.0,0.00019891,2]
[359734886,1746287443775,-772.19,0.00019891,2]
[359734887,1746287443785,-450.0,0.00019891,2]
[359734888,1746287443794,-450.0,0.00019891,2]
[359734889,1746287443804,-450.0,0.00019891,2]
[359734890,1746287443814,-999.0,0.00019891,2]
[359734891,1746287443824,-1607.15,0.00019891,2]
[359734892,1746287443835,-458.62,0.00019891,2]
[359734893,1746287443847,-450.0,0.00019891,2]
[359734894,1746287443858,-620.66,0.00019891,2]
[359734895,1746287443867,-450.0,0.00019891,2]
[359734896,1746287443877,-477.85,0.00019891,2]
[359734897,1746287443886,-994.82,0.00019891,2]
[359734898,1746287443896,-450.0,0.00019891,2]
[359734899,1746287443906,-468.15,0.00019891,2]
[359734900,1746287443916,-3487.58,0.00019891,2]
[359734901,1746287443926,-450.0,0.00019891,2]
[359734902,1746287443937,-450.0,0.00019891,2]
[359734903,1746287443946,-1054.0,0.00019891,2]
[359734904,1746287443957,-470.11,0.00019891,2]
[359734905,1746287443967,-450.0,0.00019891,2]
[359734906,1746287443976,-450.0,0.00019891,2]
[359734907,1746287443985,-450.0,0.00019891,2]
[359734908,1746287443994,-450.0,0.00019891,2]
[359734909,1746287444003,-450.0,0.00019891,2]
[359734910,1746287444013,-450.0,0.00019891,2]
[359734911,1746287444022,-1678.86,0.00019891,2]
[359734912,1746287444031,-450.0,0.00019891,2]
[359734913,1746287444040,-450.0,0.00019891,2]
[359734914,1746287444049,-450.0,0.00019891,2]
[359734915,1746287444058,-450.0,0.00019891,2]
[359734916,1746287444068,-602.25,0.00019891,2]
[359734917,1746287444079,-3443.33,0.00019891,2]
[359734918,1746287444093,-652.09,0.00019891,2]
[359734919,1746287444102,-363.22128551,0.00019891,2]
[359734920,1746287444111,-450.0,0.00019891,2]
[359734921,1746287444121,-2538.07,0.00019891,2]
[359734922,1746287444130,-847.78,0.00019891,2]
[359734923,1746287444141,-594.65,0.00019891,2]
[359734924,1746287444150,-713.82,0.00019891,2]
[359734925,1746287444161,-450.0,0.00019891,2]
[359734926,1746287444172,-534.46,0.00019891,2]
[359734927,1746287444183,-625.84,0.00019891,2]
[359734928,1746287444193,-952.16,0.00019891,2]
[359734929,1746287444203,-531.66,0.00019891,2]
[359734930,1746287444212,-769.95,0.00019891,2]
[359734931,1746287444222,-450.0,0.00019891,2]
[359734932,1746287444231,-450.0,0.00019891,2]
[359734933,1746287444243,-450.0,0.00019891,2]
[359734934,1746287444255,-812.5,0.00019891,2]
[359734935,1746287444265,-450.0,0.00019891,2]
[359734936,1746287444274,-1169.06,0.00019891,2]
[359734937,1746287444284,-450.0,0.00019891,2]
[359734938,1746287444294,-497.68,0.00019891,2]
[359734939,1746287444305,-450.0,0.00019891,2]
[359734940,1746287444317,-1672.94,0.00019891,2]
[359734941,1746287444327,-450.0,0.00019891,2]